fUSD/lending_fUSD_20260514
["ID","MTS","AMOUNT","RATE_DAILY","PERIOD"]
[422218138,1778723446000,-290.37434026,0.00015,2]
[422218137,1778723446000,-8110.90258462,0.00015,2]
[422218136,1778723446000,-159.15011264,0.000149,2]
[422218135,1778723446000,-189.08,0.00013624,2]
[422218153,1778723633000,250.61230553,0.00012497,30]
[422218154,1778723730000,527.20870448,0.0001,2]
[422218155,1778723730000,35.2896632,0.0001,2]
[422218156,1778724142000,160.51,6.948e-05,2]
[422218157,1778724143000,160.51,9.174e-05,2]
[422218160,1778724309000,352.19170439,0.0001,2]
[422218161,1778724322000,1177.8767899,0.0001,2]
[422218162,1778724343000,187.01399161,9.04e-05,2]
[422218186,1778724632000,-150.0,0.00013488,2]
[422218192,1778724632000,-239.25,0.00013624,2]
[422218189,1778724632000,-150.0,0.00013488,2]
[422218188,1778724632000,-69.28517754,0.00013488,2]
[422218190,1778724632000,-150.0,0.00013488,2]
[422218193,1778724632000,-153.97,0.00013624,2]
[422218191,1778724632000,-188.96867168,0.00013624,2]
[422218204,1778724632000,-188.96867168,0.00013773,2]
[422218198,1778724632000,-9999.99,0.00013699,2]
[422218196,1778724632000,-160.51,0.00013624,2]
[422218195,1778724632000,-150.0,0.00013624,2]
[422218202,1778724632000,-200.0,0.0001377,2]
[422218200,1778724632000,-190.8,0.00013699,2]
[422218199,1778724632000,-850.66,0.00013699,2]
[422218187,1778724632000,-80.71482246,0.00013488,2]
[422218197,1778724632000,-150.0,0.00013675,2]
[422218185,1778724632000,-151.38609086,0.00013488,2]
[422218174,1778724632000,-107.72198248,0.00013194,2]
[422218182,1778724632000,-151.89021174,0.00013488,2]
[422218168,1778724632000,-188.96867168,0.00011399,2]
[422218167,1778724632000,-160.51,0.00011399,2]
[422218170,1778724632000,-152.0,0.00012665,2]
[422218169,1778724632000,-152.0,0.00012665,2]
[422218171,1778724632000,-152.0,0.00012665,2]
[422218173,1778724632000,-1290.76,0.00013178,2]
[422218172,1778724632000,-164.75934584,0.00012665,2]
[422218175,1778724632000,-1892.27801752,0.00013194,2]
[422218177,1778724632000,-70.6451524,0.000132,2]
[422218176,1778724632000,-79.3548476,0.000132,2]
[422218178,1778724632000,-436.15,0.00013385,2]
[422218179,1778724632000,-378.77067099,0.00013487,2]
[422218181,1778724632000,-453.67080134,0.00013487,2]
[422218180,1778724632000,-367.55852767,0.00013487,2]
[422218183,1778724632000,-150.0,0.00013488,2]
[422218184,1778724632000,-151.3380736,0.00013488,2]
[422218206,1778724632000,-3783.83,0.00013775,2]
[422218251,1778724632000,-3630.0,0.000145,2]
[422218216,1778724632000,-150.0,0.00013987,2]
[422218248,1778724632000,-1029.66608969,0.000145,2]
[422218249,1778724632000,-1227.047,0.000145,2]
[422218250,1778724632000,-930.0,0.000145,2]
[422218247,1778724632000,-4979.75,0.00014497,2]
[422218252,1778724632000,-2400.0,0.000145,5]
[422218254,1778724632000,-150.99,0.00014504,2]
[422218253,1778724632000,-1150.25,0.00014504,2]
[422218255,1778724632000,-3871.08,0.00014504,2]
[422218256,1778724632000,-1840.31,0.00014504,2]
[422218257,1778724632000,-7643.11,0.00014504,2]
[422218258,1778724632000,-2582.4,0.00014504,2]
[422218208,1778724632000,-150.0,0.00013862,2]
[422218261,1778724632000,-1029.66608965,0.00014544,2]
[422218262,1778724632000,-1029.66608965,0.00014589,2]
[422218260,1778724632000,-9999.99,0.00014504,2]
[422218246,1778724632000,-2496.62888157,0.0001449,2]
[422218244,1778724632000,-150.0,0.00014487,2]
[422218259,1778724632000,-999.99,0.00014504,2]
[422218234,1778724632000,-150.0,0.00014237,2]
[422218245,1778724632000,-150.0,0.00014487,2]
[422218222,1778724632000,-267.9,0.00014075,2]
[422218212,1778724632000,-152.0,0.00013947,7]
[422218210,1778724632000,-993.068,0.00013904,2]
[422218214,1778724632000,-150.0,0.00013987,2]
[422218220,1778724632000,-150.0,0.0001405,2]
[422218224,1778724632000,-49923.04,0.000141,2]
[422218225,1778724632000,-400.0,0.000141,5]
[422218218,1778724632000,-250.0,0.00014,2]
[422218241,1778724632000,-153.97,0.00014305,2]
[422218243,1778724632000,-150.0,0.00014424,2]
[422218227,1778724632000,-150.0,0.000142,2]
[422218242,1778724632000,-1900.0,0.000144,5]
[422218229,1778724632000,-900.0,0.000142,5]
[422218231,1778724632000,-150.0,0.00014237,2]
[422218238,1778724632000,-1400.0,0.000143,5]
[422218236,1778724632000,-150.0,0.00014237,2]
[422218278,1778724633000,-1000.0,0.00014773,2]
[422218275,1778724633000,-389.0,0.00014761,2]
[422218281,1778724633000,-1493.157,0.00014799,2]
[422218282,1778724633000,-384.12875824,0.000148,2]
[422218283,1778724633000,-400.0,0.000148,5]
[422218285,1778724633000,-1029.66608965,0.00014811,2]
[422218284,1778724633000,-158.17960734,0.00014806,2]
[422218288,1778724633000,-164.798,0.00014825,2]
[422218287,1778724633000,-158.17960729,0.00014818,2]
[422218290,1778724633000,-158.17960729,0.0001483,2]
[422218292,1778724633000,-1000.0,0.00014833,2]
[422218289,1778724633000,-384.1287582,0.00014829,2]
[422218286,1778724633000,-384.1287582,0.00014814,2]
[422218280,1778724633000,-150.0,0.00014799,2]
[422218271,1778724633000,-1029.66608965,0.00014722,2]
[422218277,1778724633000,-1029.66608965,0.00014767,2]
[422218279,1778724633000,-312.0,0.00014795,2]
[422218274,1778724633000,-218.0,0.00014732,2]
[422218272,1778724633000,-239.0,0.00014726,2]
[422218273,1778724633000,-1000.0,0.00014728,2]
[422218270,1778724633000,-2285.0,0.00014702,2]
[422218269,1778724633000,-530.0,0.00014702,2]
[422218267,1778724633000,-1029.66608965,0.00014678,2]
[422218266,1778724633000,-1029.66608965,0.00014633,2]
[422218265,1778724633000,-150.0,0.00014612,2]
[422218268,1778724633000,-400.0,0.000147,5]
[422218264,1778724633000,-400.0,0.000146,5]
[422218263,1778724633000,-121483.8052,0.0001459,2]
[422218291,1778724633000,-296.0,0.0001483,2]
[422218276,1778724633000,-389.0,0.00014762,2]
[422218294,1778724633000,-158.17960729,0.00014841,2]
[422218309,1778724633000,-158.17960729,0.00014865,2]
[422218296,1778724633000,-384.1287582,0.00014843,2]
[422218325,1778724633000,-6246.44652404,0.000149,2]
[422218324,1778724633000,-24576.61389251,0.000149,2]
[422218323,1778724633000,-204.94424721,0.000149,2]
[422218321,1778724633000,-9125.754,0.000149,2]
[422218319,1778724633000,-1029.66608965,0.000149,2]
[422218320,1778724633000,-5000.0,0.000149,2]
[422218322,1778724633000,-400.0,0.000149,5]
[422218318,1778724633000,-289.67441483,0.00014897,2]
[422218317,1778724633000,-158.17960729,0.00014888,2]
[422218315,1778724633000,-384.1287582,0.00014886,2]
[422218316,1778724633000,-204.94424721,0.00014886,2]
[422218314,1778724633000,-200.0,0.0001488,2]
[422218313,1778724633000,-1000.0,0.0001488,2]
[422218310,1778724633000,-548.0,0.00014871,2]
[422218293,1778724633000,-1680.0,0.00014835,2]
[422218311,1778724633000,-384.1287582,0.00014871,2]
[422218312,1778724633000,-158.17960729,0.00014877,2]
[422218297,1778724633000,-389.0,0.00014848,2]
[422218295,1778724633000,-2000.0,0.00014843,2]
[422218298,1778724633000,-1000.0,0.0001485,2]
[422218301,1778724633000,-734.43013,0.0001485,2]
[422218302,1778724633000,-651.6097193,0.0001485,2]
[422218299,1778724633000,-734.43013,0.0001485,2]
[422218304,1778724633000,-17429.97916327,0.0001485,2]
[422218303,1778724633000,-5155.31848065,0.0001485,2]
[422218305,1778724633000,-158.17960729,0.00014853,2]
[422218306,1778724633000,-1029.66608965,0.00014856,2]
[422218307,1778724633000,-384.1287582,0.00014857,2]
[422218308,1778724633000,-613.46949498,0.00014861,2]
[422218300,1778724633000,-734.43013,0.0001485,2]
[422218338,1778724638000,-158.17960729,0.000149,2]
[422218342,1778724638000,-389.0,0.00014919,2]
[422218343,1778724638000,-1000.0,0.00014926,2]
[422218341,1778724638000,-1044.05247224,0.00014906,2]
[422218339,1778724638000,-1447.27242209,0.00014906,2]
[422218336,1778724638000,-1339.77718348,0.000149,2]
[422218335,1778724638000,-2498.81103415,0.000149,2]
[422218328,1778724638000,-379.44860452,0.000149,2]
[422218340,1778724638000,-13552.72757791,0.00014906,2]
[422218334,1778724638000,-828.44602511,0.000149,2]
[422218333,1778724638000,-434.67906184,0.000149,2]
[422218332,1778724638000,-4473.74045959,0.000149,2]
[422218331,1778724638000,-6201.89014332,0.000149,2]
[422218330,1778724638000,-2065.51196327,0.000149,2]
[422218329,1778724638000,-533.98864755,0.000149,2]
[422218337,1778724638000,-384.1287582,0.000149,2]
[422218345,1778724638000,-150.0,0.00014961,2]
[422218356,1778724638000,-500.0,0.00014976,2]
[422218347,1778724638000,-389.0,0.00014975,2]
[422218376,1778724638000,-47427.48264193,0.00014977,2]
[422218379,1778724638000,-2763.33395894,0.00014977,2]
[422218344,1778724638000,-10401.92,0.00014959,2]
[422218372,1778724638000,-645.29482982,0.00014976,2]
[422218370,1778724638000,-500.0,0.00014976,2]
[422218368,1778724638000,-500.0,0.00014976,2]
[422218364,1778724638000,-500.0,0.00014976,2]
[422218374,1778724638000,-150.0,0.00014976,2]
[422218362,1778724638000,-500.0,0.00014976,2]
[422218354,1778724638000,-500.0,0.00014976,2]
[422218352,1778724638000,-500.0,0.00014976,2]
[422218350,1778724638000,-500.0,0.00014976,2]
[422218358,1778724638000,-500.0,0.00014976,2]
[422218360,1778724638000,-500.0,0.00014976,2]
[422218349,1778724638000,-500.0,0.00014976,2]
[422218366,1778724638000,-500.0,0.00014976,2]
[422218609,1778724640000,-151.0,0.00014997,2]
[422218596,1778724640000,-153.62321046,0.00014986,2]
[422218598,1778724640000,-150.0,0.00014986,2]
[422218599,1778724640000,-150.0,0.00014986,2]
[422218611,1778724640000,-618.19357069,0.00014999,2]
[422218594,1778724640000,-296.0,0.00014986,2]
[422218607,1778724640000,-518.73852674,0.00014993,2]
[422218603,1778724640000,-154.79660863,0.00014986,2]
[422218601,1778724640000,-246.08430142,0.00014986,2]
[422218592,1778724640000,-522312.34416763,0.00014977,2]
[422218605,1778724640000,-153.97,0.00014987,2]
[422218615,1778724640000,-508.7088256,0.00014999,2]
[422218613,1778724640000,-377.83547969,0.00014999,2]
[422218617,1778724640000,-500.0,0.00014999,2]
[422218623,1778724640000,-300.0,0.00014999,2]
[422218626,1778724640000,-300.0,0.00014999,2]
[422218624,1778724640000,-300.0,0.00014999,2]
[422218621,1778724640000,-512.67652341,0.00014999,2]
[422218634,1778724640000,-365735.35374354,0.00015,2]
[422218628,1778724640000,-1920.0,0.00015,5]
[422218632,1778724640000,-150.0,0.00015,2]
[422218630,1778724640000,-2198.0,0.00015,5]
[422218619,1778724640000,-510.62007951,0.00014999,2]
[422218977,1778724643000,-6766.50822803,0.00015,2]
[422218985,1778724643000,-1529.58146117,0.00015,2]
[422218999,1778724643000,-65765.32710352,0.00015,2]
[422218996,1778724643000,-1521042.67289663,0.00015,2]
[422218994,1778724643000,-6052.0,0.00014998,2]
[422219410,1778724646000,-1401.74345004,0.00015,2]
[422220786,1778724878000,222.0,0.00027397,120]
[422220787,1778725039000,342.8276618,0.0002739,120]
[422220788,1778725135000,-160.7,0.00013903,2]
[422220792,1778725135000,-666.43,0.00014404,2]
[422220791,1778725135000,-300.0,0.00014403,2]
[422220789,1778725135000,-218.07,0.00013908,2]
[422220793,1778725135000,-3500.83,0.00014404,2]
[422220790,1778725135000,-153.97,0.00014077,2]
[422220794,1778725145000,-5000.0,0.00014404,2]
[422220797,1778725155000,-166.34678,0.00014582,2]
[422220796,1778725155000,-3812.0864,0.00014404,2]
[422220795,1778725155000,-1021.56682,0.00014332,2]
[422220798,1778725157000,-156.25547822,0.00014482,2]
[422220800,1778725157000,-957.08471565,0.000147,2]
[422220799,1778725157000,-97.65322,0.00014582,2]
[422220801,1778725157000,-296.0,0.00014837,2]
[422220803,1778725157000,-236.0,0.00014856,2]
[422220804,1778725157000,-509.67,0.00014864,2]
[422220805,1778725157000,-2548.01716613,0.00014877,2]
[422220802,1778725157000,-199.31942,0.0001485,2]
[422220806,1778725164000,-638.0564771,0.000147,2]
[422220807,1778725164000,-2451.98283387,0.00014877,2]
[422220808,1778725164000,-1000.0,0.0001488,2]
[422220812,1778725164000,-187.38842986,0.00014894,2]
[422220809,1778725164000,-200.0,0.0001488,2]
[422220810,1778725164000,-201.9544886,0.0001489,2]
[422220813,1778725164000,-142.66571234,0.00014895,2]
[422220811,1778725164000,-177.95205823,0.00014894,2]
[422220817,1778725165000,-187.38842985,0.00014897,2]
[422220814,1778725165000,-44.72271751,0.00014895,2]
[422220815,1778725165000,-187.38842985,0.00014896,2]
[422220818,1778725165000,-187.38842985,0.00014897,2]
[422220820,1778725165000,-187.38842985,0.00014898,2]
[422220819,1778725165000,-177.9520582,0.00014898,2]
[422220816,1778725165000,-177.9520582,0.00014896,2]
[422220824,1778725166000,-2498.67993845,0.000149,2]
[422220823,1778725166000,-1013.75107839,0.000149,2]
[422220822,1778725166000,-187.38842985,0.00014899,2]
[422220821,1778725166000,-150.0,0.00014899,2]
[422220827,1778725167000,-440.17036995,0.000149,2]
[422220825,1778725167000,-710.92,0.00014409,7]
[422220826,1778725167000,-425.37098473,0.000147,2]
[422220828,1778725167000,-177.9520582,0.000149,2]
[422220830,1778725167000,-161.48623772,0.00014916,2]
[422220834,1778725167000,-500.0,0.00014993,2]
[422220831,1778725167000,-199.31943,0.0001495,2]
[422220832,1778725167000,-164.098,0.0001499,2]
[422220833,1778725167000,-1594.791,0.0001499,2]
[422220835,1778725167000,-238.3660922,0.00014993,2]
[422220836,1778725167000,-200.13739735,0.00014993,2]
[422220829,1778725167000,-187.38842985,0.000149,2]
[422220837,1778725168000,-710.92,0.00014265,7]
[422220843,1778725169000,-1775.62087394,0.00014994,2]
[422220842,1778725169000,-502.67652341,0.00014993,2]
[422220841,1778725169000,-500.0,0.00014993,2]
[422220839,1778725169000,-299.86260265,0.00014993,2]
[422220840,1778725169000,-500.0,0.00014993,2]
[422220838,1778725169000,-710.92,0.00014337,7]
[422220846,1778725177000,-283.58065649,0.000147,2]
[422220844,1778725177000,-710.92,0.00014193,7]
[422220845,1778725177000,-1218.71,0.00014337,7]
[422220847,1778725177000,-2786.78934351,0.00014994,2]
[422220848,1778725178000,-5000.0,0.00014994,2]
[422220849,1778725188000,-189.05377099,0.000147,2]
[422220851,1778725188000,-2000.0,0.0001497,2]
[422220853,1778725188000,-569.40562371,0.0001499,2]
[422220850,1778725188000,-241.5406053,0.0001496,2]
[422220852,1778725188000,-2000.0,0.0001498,2]
[422220854,1778725190000,-1430.59437629,0.0001499,2]
[422220855,1778725190000,-3569.40562371,0.00014994,2]
[422220857,1778725192000,-4810.946229,0.00014994,2]
[422220856,1778725192000,-189.053771,0.000147,2]
[422220858,1778725194000,-5000.0,0.00014994,2]
[422220863,1778725213000,-720.44,0.00014994,2]
[422220862,1778725213000,-300.0,0.00014993,2]
[422220861,1778725213000,-1200.0,0.00014993,2]
[422220860,1778725213000,-1389.78,0.0001499,2]
[422220859,1778725213000,-1389.78,0.00014984,2]
[422220864,1778725215000,-5000.0,0.00014994,2]
[422220865,1778725258000,-518.73852674,0.0001481,2]
[422220868,1778725258000,-2267.71900333,0.00014894,2]
[422220867,1778725258000,-213.54246993,0.00014894,2]
[422220866,1778725258000,-2000.0,0.00014894,2]
[422220869,1778725264000,-1685.9102024,0.00014894,2]
[422220871,1778725264000,-3100.54732776,0.00014895,2]
[422220870,1778725264000,-213.54246984,0.00014895,2]
[422220874,1778725272000,-3933.3756522,0.00014895,2]
[422220872,1778725272000,-853.08187796,0.00014895,2]
[422220873,1778725272000,-213.54246984,0.00014895,2]
[422220875,1778725274000,-20.25355352,0.00014895,2]
[422220877,1778725274000,-3953.62920572,0.00014896,2]
[422220879,1778725274000,-213.54246984,0.00014897,2]
[422220876,1778725274000,-213.54246984,0.00014896,2]
[422220881,1778725274000,-150.0,0.00014993,2]
[422220880,1778725274000,-213.54246984,0.00014898,2]
[422220882,1778725274000,-21.9473614,0.00014994,2]
[422220878,1778725274000,-213.54246984,0.00014897,2]
[422220887,1778725287000,-484.20550472,0.00014897,2]
[422220886,1778725287000,-3953.62920572,0.00014897,2]
[422220885,1778725287000,-187.38842985,0.00014896,2]
[422220884,1778725287000,-187.38842985,0.00014895,2]
[422220883,1778725287000,-187.38842986,0.00014894,2]
[422220888,1778725297000,-167.05,0.00010899,2]
[422220889,1778725297000,-187.38842985,0.00014897,2]
[422220890,1778725297000,-3469.423701,0.00014897,2]
[422220891,1778725297000,-1176.13786915,0.00014898,2]
[422220892,1778725313000,-5000.0,0.00014894,2]
[422220893,1778725315000,-5000.0,0.00014894,2]
[422220898,1778725323000,-2777.49133657,0.00014898,2]
[422220897,1778725323000,-187.38842985,0.00014897,2]
[422220899,1778725323000,-187.38842985,0.00014898,2]
[422220900,1778725323000,-213.54246984,0.00014899,2]
[422220896,1778725323000,-613.1418,0.00014894,2]
[422220895,1778725323000,-500.0,0.0001481,2]
[422220901,1778725323000,-369.04753389,0.00014899,2]
[422220894,1778725323000,-152.0,0.00013994,7]
[422220905,1778725325000,-1014.48742848,0.00014899,2]
[422220904,1778725325000,-213.54246984,0.00014899,2]
[422220902,1778725325000,-3584.58167183,0.00014899,2]
[422220903,1778725325000,-187.38842985,0.00014899,2]
[422220906,1778725353000,-500.0,0.0001481,2]
[422220909,1778725353000,-1347.31575292,0.000149,2]
[422220908,1778725353000,-213.54246984,0.000149,2]
[422220907,1778725353000,-2939.14177724,0.00014899,2]
[422220910,1778725354000,-3652.68424708,0.000149,2]
[422220911,1778725354000,-1347.31575292,0.000149,2]
[422220913,1778725356000,-187.38842985,0.000149,2]
[422220912,1778725356000,-2606.3134528,0.000149,2]
[422220914,1778725356000,-500.0,0.00014976,2]
[422220918,1778725356000,-206.29811735,0.00014993,2]
[422220916,1778725356000,-500.0,0.00014976,2]
[422220917,1778725356000,-500.0,0.00014976,2]
[422220915,1778725356000,-500.0,0.00014976,2]
[422220920,1778725357000,-4697.58929175,0.00014994,2]
[422220919,1778725357000,-302.41070825,0.00014993,2]
[422220921,1778725392000,-500.0,0.0001481,2]
[422220922,1778725393000,-1000.0,0.0001488,2]
[422220924,1778725393000,-300.0,0.00014993,2]
[422220923,1778725393000,-500.0,0.00014976,2]
[422220925,1778725393000,-2700.0,0.00014994,2]
[422220926,1778725394000,-5000.0,0.00014994,2]
[422220929,1778725400000,-5000.0,0.00014994,2]
[422220927,1778725400000,-200.0,0.0001488,2]
[422220928,1778725400000,-4800.0,0.00014994,2]
[422220930,1778725401000,-5000.0,0.00014994,2]
[422220931,1778725402000,-5000.0,0.00014994,2]
[422220932,1778725403000,-5000.0,0.00014994,2]
[422220933,1778725404000,-5000.0,0.00014994,2]
[422220934,1778725405000,-5000.0,0.00014994,2]
[422220935,1778725406000,-5000.0,0.00014994,2]
[422220936,1778725412000,-234.76197826,0.000149,2]
[422220939,1778725412000,-3325.30607165,0.00014994,2]
[422220937,1778725412000,-1275.833,0.00014993,2]
[422220938,1778725412000,-164.09895009,0.00014993,2]
[422220940,1778725413000,-5000.0,0.00014994,2]
[422220941,1778725414000,-5000.0,0.00014994,2]
[422220942,1778725415000,-5000.0,0.00014994,2]
[422220943,1778725416000,-5000.0,0.00014994,2]
[422220944,1778725417000,-5000.0,0.00014994,2]
[422220945,1778725421000,-200.0,0.00014994,2]
[422220947,1778725424000,-200.0,0.00014994,2]
[422220946,1778725424000,-200.0,0.00014994,2]
[422220950,1778725425000,-200.0,0.00014994,2]
[422220949,1778725425000,-200.0,0.00014994,2]
[422220948,1778725425000,-200.0,0.00014994,2]
[422220952,1778725426000,-200.0,0.00014994,2]
[422220951,1778725426000,-200.0,0.00014994,2]
[422220953,1778725427000,-200.0,0.00014994,2]
[422220954,1778725427000,-200.0,0.00014994,2]
[422220955,1778725427000,-200.0,0.00014994,2]
[422220957,1778725428000,-200.0,0.00014994,2]
[422220956,1778725428000,-200.0,0.00014994,2]
[422220960,1778725429000,-200.0,0.00014994,2]
[422220959,1778725429000,-200.0,0.00014994,2]
[422220958,1778725429000,-200.0,0.00014994,2]
[422220962,1778725430000,-200.0,0.00014994,2]
[422220961,1778725430000,-200.0,0.00014994,2]
[422220965,1778725431000,-200.0,0.00014994,2]
[422220963,1778725431000,-200.0,0.00014994,2]
[422220964,1778725431000,-200.0,0.00014994,2]
[422220967,1778725432000,-200.0,0.00014994,2]
[422220966,1778725432000,-200.0,0.00014994,2]
[422220968,1778725438000,-200.0,0.00014994,2]
[422220969,1778725440000,-200.0,0.00014994,2]
[422220971,1778725453000,-50.0,0.00014994,2]
[422220972,1778725453000,-200.0,0.00014464,2]
[422220970,1778725453000,-150.0,0.00014993,2]
[422220973,1778725454000,-200.0,0.00014464,2]
[422220975,1778725454000,-200.0,0.00014464,2]
[422220974,1778725454000,-200.0,0.00014464,2]
[422220976,1778725455000,-200.0,0.00014464,2]
[422220977,1778725455000,-200.0,0.00014464,2]
[422220980,1778725456000,-200.0,0.00014464,2]
[422220979,1778725456000,-200.0,0.00014464,2]
[422220978,1778725456000,-200.0,0.00014464,2]
[422220983,1778725457000,-200.0,0.000149,2]
[422220982,1778725457000,-200.0,0.000149,2]
[422220981,1778725457000,-200.0,0.00014464,2]
[422220984,1778725458000,-200.0,0.000149,2]
[422220985,1778725458000,-200.0,0.000149,2]
[422220987,1778725459000,-200.0,0.000149,2]
[422220986,1778725459000,-200.0,0.000149,2]
[422220988,1778725459000,-200.0,0.000149,2]
[422220990,1778725460000,-200.0,0.000149,2]
[422220989,1778725460000,-200.0,0.000149,2]
[422220993,1778725461000,-200.0,0.000149,2]
[422220992,1778725461000,-200.0,0.000149,2]
[422220991,1778725461000,-200.0,0.000149,2]
[422220995,1778725462000,-200.0,0.000149,2]
[422220994,1778725462000,-200.0,0.000141,5]
[422220996,1778725463000,-200.0,0.000149,2]
[422220997,1778725468000,-200.0,0.000142,5]
[422220999,1778725469000,-100.0,0.000142,5]
[422221000,1778725469000,-100.0,0.000143,5]
[422220998,1778725469000,-200.0,0.000142,5]
[422221003,1778725470000,-200.0,0.000143,5]
[422221002,1778725470000,-200.0,0.000143,5]
[422221001,1778725470000,-200.0,0.000143,5]
[422221005,1778725471000,-200.0,0.000144,5]
[422221004,1778725471000,-200.0,0.000144,5]
[422221006,1778725472000,-200.0,0.000144,5]
[422221007,1778725472000,-200.0,0.000144,5]
[422221010,1778725473000,-200.0,0.000145,5]
[422221009,1778725473000,-200.0,0.000145,5]
[422221008,1778725473000,-200.0,0.000144,5]
[422221013,1778725474000,-200.0,0.000145,5]
[422221011,1778725474000,-200.0,0.000145,5]
[422221012,1778725474000,-200.0,0.000145,5]
[422221015,1778725475000,-200.0,0.000146,5]
[422221014,1778725475000,-200.0,0.000145,5]
[422221016,1778725477000,-200.0,0.000147,5]
[422221017,1778725480000,-200.0,0.000148,5]
[422221018,1778725481000,-200.0,0.000149,2]
[422221019,1778725483000,-200.0,0.000149,2]
[422221020,1778725537000,713.62420666,0.00027,120]
[422221023,1778725607000,-29.10181236,0.00013488,2]
[422221022,1778725607000,-150.0,0.00013488,2]
[422221021,1778725607000,-153.62321046,0.00013488,2]
[422221039,1778725832000,-189.053771,0.000147,2]
[422221037,1778725832000,-150.0,0.00014554,2]
[422221038,1778725832000,-122746.3753759,0.00014555,2]
[422221040,1778725832000,-253.28951792,0.00014776,2]
[422221042,1778725832000,-1765.07404963,0.00014794,2]
[422221043,1778725832000,-6111.0,0.00014796,2]
[422221041,1778725832000,-253.28951791,0.00014794,2]
[422221036,1778725832000,-1200.0,0.00014554,2]
[422221034,1778725832000,-759.17,0.00014409,7]
[422221045,1778725832000,-253.28951791,0.00014811,2]
[422221033,1778725832000,-325.36,0.00014337,7]
[422221030,1778725832000,-569.13169042,0.000135,2]
[422221031,1778725832000,-994.59093959,0.000135,2]
[422221027,1778725832000,-150.0,0.00013488,2]
[422221028,1778725832000,-493.41987352,0.000135,2]
[422221025,1778725832000,-120.89818764,0.00013488,2]
[422221026,1778725832000,-150.0,0.00013488,2]
[422221035,1778725832000,-150.0,0.00014487,2]
[422221046,1778725832000,-1765.07404962,0.00014818,2]
[422221029,1778725832000,-806.79579647,0.000135,2]
[422221048,1778725832000,-1765.07404962,0.00014829,2]
[422221044,1778725832000,-1765.07404962,0.00014806,2]
[422221065,1778725832000,-723.91269507,0.00014894,2]
[422221063,1778725832000,-181.50047468,0.00014888,2]
[422221061,1778725832000,-1583.57357494,0.00014888,2]
[422221066,1778725832000,-2277.63330726,0.00014894,2]
[422221064,1778725832000,-788.9484529,0.00014894,2]
[422221060,1778725832000,-367.21507,0.0001488,2]
[422221059,1778725832000,-1765.07404962,0.00014876,2]
[422221058,1778725832000,-1412.20353599,0.00014876,2]
[422221032,1778725832000,-150.0,0.00013987,2]
[422221051,1778725832000,-1765.07404962,0.00014853,2]
[422221052,1778725832000,-1765.07404962,0.00014865,2]
[422221053,1778725832000,-6111.0,0.00014867,2]
[422221056,1778725832000,-765.5651728,0.00014876,2]
[422221057,1778725832000,-680.84023361,0.00014876,2]
[422221055,1778725832000,-12734.76033973,0.00014876,2]
[422221054,1778725832000,-166411.20541787,0.00014876,2]
[422221049,1778725832000,-1765.07404962,0.00014841,2]
[422221050,1778725832000,-253.28951791,0.00014847,2]
[422221047,1778725832000,-253.28951791,0.00014829,2]
[422221102,1778725840000,-367.21506,0.0001492,2]
[422221100,1778725840000,-1800.0,0.000149,2]
[422221099,1778725840000,-2500.0,0.00014894,2]
[422221103,1778725840000,-15000.0,0.00014926,2]
[422221101,1778725840000,-1765.07404962,0.000149,2]
[422221096,1778725840000,-2000.0,0.00014894,2]
[422221098,1778725840000,-9735.2569,0.00014894,2]
[422221104,1778725840000,-8889.0,0.00014929,2]